[Event "2nd Turkish League 2017"]
[Site "Konya"]
[Date "2017.07.20"]
[Round "6"]
[White "Sahin, Hatice"]
[Black "Turkkan, Ece"]
[Result "1-0"]
[ECO "A41"]
[WhiteElo "1560"]
[BlackElo "1532"]
[Annotator "NA"]
[PlyCount "175"]
[EventType "team-tourn"]
[EventCountry "TUR"]
[SourceTitle "playchess.com"]
[Source "ChessBase"]
[SourceQuality "1"]
[TimeControl "5400+30"]

1. e4 {[%emt 0:00:30]} d6 {[%emt 0:01:00]} 2. d4 {[%emt 0:00:30]} g6 {[%emt 0:00:30]} 3. Nf3 {[%emt 0:00:30]} Bg7 {[%emt 0:00:00]} 4. c4 {[%emt 0:04:30]} Nd7 {[%emt 0:00:00]} 5. Bd3 {[%emt 0:02:30]} e5 {[%emt 0:00:00]} 6. dxe5 {[%emt 0:01:30]} dxe5 {[%emt 0:01:00]} 7. O-O {[%emt 0:01:30]} Ne7 {[%emt 0:02:30]} 8. Nc3 {[%emt 0:03:30]} O-O {[%emt 0:00:30]} 9. Bg5 {[%emt 0:02:30]} c6 {[%emt 0:04:30]} 10. Qd2 {[%emt 0:04:30]} Nc5 {[%emt 0:14:30]} 11. Rad1 {[%emt 0:04:30]} Bg4 {[%emt 0:26:30]} 12. Qe3 {[%emt 0:18:30]} Nxd3 {[%emt 0:15:30]} 13. Rxd3 {[%emt 0:02:30]} Qc7 {[%emt 0:00:30]} 14. h3 {[%emt 0:05:30]} Be6 {[%emt 0:00:30]} 15. b3 {[%emt 0:02:30]} f6 {[%emt 0:15:27]} 16. Bh6 {[%emt 0:07:30]} Bxh6 {[%emt 0:02:44]} 17. Qxh6 {[%emt 0:00:30]} Rad8 {[%emt 0:00:10]} 18. Rfd1 {[%emt 0:03:30]} Rxd3 {[%emt 0:00:30]} 19. Rxd3 {[%emt 0:00:30]} Rd8 {[%emt 0:00:00]} 20. Qd2 {[%emt 0:01:30]} Rxd3 {[%emt 0:00:14]} 21. Qxd3 {[%emt 0:00:00]} Qd7 {[%emt 0:01:47]} 22. Qxd7 {[%emt 0:05:00]} Bxd7 {[%emt 0:00:01]} 23. Ne1 {[%emt 0:00:30]} b6 {[%emt 0:03:20]} 24. Nc2 {[%emt 0:02:30]} Kf7 {[%emt 0:00:46]} 25. f3 {[%emt 0:00:30]} Ke6 {[%emt 0:03:01]} 26. Kf2 {[%emt 0:00:30]} Nc8 {[%emt 0:01:00]} 27. Ke2 {[%emt 0:01:30]} Nd6 {[%emt 0:00:50]} 28. Ke3 {[%emt 0:02:30]} Nb7 {[%emt 0:00:52]} 29. Kd3 {[%emt 0:01:30]} Nc5+ {[%emt 0:00:13]} 30. Ke3 {[%emt 0:00:30]} a5 {[%emt 0:03:54]} 31. Kd2 {[%emt 0:03:18]} Kd6 {[%emt 0:00:17]} 32. Ke3 {[%emt 0:00:12]} Bc8 {[%emt 0:01:15]} 33. Kd2 {[%emt 0:01:14]} Ba6 {[%emt 0:00:45]} 34. Na3 {[%emt 0:02:52]} Ke6 {[%emt 0:00:57]} 35. Ke3 {[%emt 0:01:22]} Kd6 {[%emt 0:00:21]} 36. Kd2 {[%emt 0:01:32]} Ne6 {[%emt 0:00:22]} 37. g3 {[%emt 0:01:41]} Ng5 {[%emt 0:00:26]} 38. Ke3 {[%emt 0:02:28]} Nxh3 {[%emt 0:01:08]} 39. f4 {[%emt 0:00:05]} Bc8 {[%emt 0:01:07]} 40. Na4 {[%emt 0:00:43]} Kc7 {[%emt 0:00:08]} 41. Nb2 {[%emt 0:01:50]} Kd6 {[%emt 0:00:34]} 42. Na4 {[%emt 0:00:31]} Kc7 {[%emt 0:00:05]} 43. Nb2 {[%emt 0:00:08]} Kd6 {[%emt 0:01:00]} 44. Na4 {[%emt 0:00:08]} Kc7 {[%emt 0:00:01]} 45. Nb2 {[%emt 0:00:14]} exf4+ {[%emt 0:01:33]} 46. gxf4 {[%emt 0:00:30]} g5 {[%emt 0:00:00]} 47. fxg5 {[%emt 0:01:11]} fxg5 {[%emt 0:00:29]} 48. Nd1 {[%emt 0:01:43]} Nf4 {[%emt 0:00:26]} 49. Nf2 {[%emt 0:00:49]} h5 {[%emt 0:00:11]} 50. Nc2 {[%emt 0:00:40]} h4 {[%emt 0:00:32]} 51. Nd4 {[%emt 0:01:07]} Ne6 {[%emt 0:00:51]} 52. Nf5 {[%emt 0:02:14]} Nf8 {[%emt 0:00:29]} 53. Kf3 {[%emt 0:00:17]} Ng6 {[%emt 0:00:32]} 54. Kg4 {[%emt 0:00:53]} Bxf5+ {[%emt 0:01:09]} 55. exf5 {[%emt 0:00:32]} Nf8 {[%emt 0:00:27]} 56. Kxg5 {[%emt 0:00:00]} Kd6 {[%emt 0:00:34]} 57. Kxh4 {[%emt 0:00:08]} Ke5 {[%emt 0:00:00]} 58. Kg4 {[%emt 0:00:53]} Nh7 {[%emt 0:00:09]} 59. Nd3+ {[%emt 0:00:30]} Kf6 {[%emt 0:00:30]} 60. Kf4 {[%emt 0:00:59]} Ng5 {[%emt 0:00:19]} 61. Nf2 {[%emt 0:01:10]} Nh7 {[%emt 0:01:22]} 62. Ng4+ {[%emt 0:00:43]} Ke7 {[%emt 0:00:16]} 63. Ke5 {[%emt 0:00:22]} c5 {[%emt 0:00:23]} 64. f6+ {[%emt 0:00:01]} Kd7 {[%emt 0:00:55]} 65. Kf5 {[%emt 0:01:15]} Nf8 {[%emt 0:00:30]} 66. Ne5+ {[%emt 0:00:00]} Kd6 {[%emt 0:00:18]} 67. Ng6 {[%emt 0:00:04]} Ne6 {[%emt 0:00:37]} 68. f7 {[%emt 0:01:03]} Ng7+ {[%emt 0:00:22]} 69. Kg5 {[%emt 0:00:35]} Ne6+ {[%emt 0:00:31]} 70. Kf6 {[%emt 0:00:32]} Kd7 {[%emt 0:00:47]} 71. f8=Q {[%emt 0:00:42]} Nxf8 {[%emt 0:00:11]} 72. Nxf8+ {[%emt 0:00:30]} Kc6 {[%emt 0:00:30]} 73. Ke6 {[%emt 0:00:00]} b5 {[%emt 0:00:01]} 74. cxb5+ {[%emt 0:01:41]} Kxb5 {[%emt 0:00:06]} 75. Kd5 {[%emt 0:00:00]} a4 {[%emt 0:01:19]} 76. Nd7 {[%emt 0:00:27]} Kb4 {[%emt 0:00:53]} 77. Nxc5 {[%emt 0:00:13]} axb3 {[%emt 0:00:41]} 78. axb3 {[%emt 0:00:05]} Kc3 {[%emt 0:00:00]} 79. Kc6 {[%emt 0:00:43]} Kb4 {[%emt 0:00:24]} 80. Kb6 {[%emt 0:00:11]} Kc3 {[%emt 0:00:28]} 81. Kb5 {[%emt 0:00:18]} Kd4 {[%emt 0:00:30]} 82. b4 {[%emt 0:00:19]} Kd5 {[%emt 0:00:23]} 83. Nb3 {[%emt 0:00:24]} Kd6 {[%emt 0:00:13]} 84. Ka6 {[%emt 0:00:13]} Kc6 {[%emt 0:00:16]} 85. b5+ {[%emt 0:00:07]} Kc7 {[%emt 0:00:07]} 86. Ka7 {[%emt 0:00:13]} Kc8 {[%emt 0:00:12]} 87. b6 {[%emt 0:00:08]} Kd8 {[%emt 0:01:57]} 88. b7 {[%emt 0:00:10]} 1-0

[Event "2nd Turkish League 2017"]
[Site "Konya"]
[Date "2017.07.20"]
[Round "6"]
[White "Koc, Aylin"]
[Black "Demir, Aleyna"]
[Result "0-1"]
[ECO "B01"]
[WhiteElo "1550"]
[BlackElo "1439"]
[Annotator "NA"]
[PlyCount "92"]
[EventType "team-tourn"]
[EventCountry "TUR"]
[SourceTitle "playchess.com"]
[Source "ChessBase"]
[SourceQuality "1"]
[TimeControl "5400+30"]

1. e4 {[%emt 0:00:30]} d5 {[%emt 0:01:00]} 2. exd5 {[%emt 0:00:30]} Qxd5 {[%emt 0:00:30]} 3. Nc3 {[%emt 0:00:00]} Qa5 {[%emt 0:00:00]} 4. d4 {[%emt 0:01:00]} c6 {[%emt 0:00:00]} 5. Nf3 {[%emt 0:00:00]} Bg4 {[%emt 0:00:30]} 6. Bc4 {[%emt 0:01:00]} e6 {[%emt 0:00:00]} 7. O-O {[%emt 0:00:30]} Nf6 {[%emt 0:01:00]} 8. Re1 {[%emt 0:01:30]} Qc7 {[%emt 0:02:30]} 9. Qd3 {[%emt 0:02:30]} Bxf3 {[%emt 0:00:30]} 10. Qxf3 {[%emt 0:01:30]} Nbd7 {[%emt 0:00:30]} 11. Bf4 {[%emt 0:00:30]} Bd6 {[%emt 0:01:30]} 12. Bxd6 {[%emt 0:00:30]} Qxd6 {[%emt 0:00:30]} 13. Rad1 {[%emt 0:01:30]} Nb6 {[%emt 0:00:30]} 14. Bb3 {[%emt 0:00:30]} O-O-O {[%emt 0:04:30]} 15. a4 {[%emt 0:01:30]} Qb4 {[%emt 0:02:30]} 16. Na2 {[%emt 0:00:30]} Qa5 {[%emt 0:00:30]} 17. Nc3 {[%emt 0:03:30]} Qb4 {[%emt 0:01:30]} 18. a5 {[%emt 0:00:30]} Nbd5 {[%emt 0:05:30]} 19. a6 {[%emt 0:03:30]} Rd7 {[%emt 0:06:30]} 20. axb7+ {[%emt 0:00:30]} Qxb7 {[%emt 0:00:30]} 21. Na4 {[%emt 0:00:30]} Rdd8 {[%emt 0:06:30]} 22. Nc5 {[%emt 0:00:30]} Qb6 {[%emt 0:01:30]} 23. Bc4 {[%emt 0:01:30]} Nc7 {[%emt 0:02:30]} 24. Ra1 {[%emt 0:01:30]} Rxd4 {[%emt 0:14:30]} 25. Na4 {[%emt 0:04:30]} Qb7 {[%emt 0:02:30]} 26. b3 {[%emt 0:00:30]} Ncd5 {[%emt 0:02:30]} 27. Qg3 {[%emt 0:03:30]} Rg4 {[%emt 0:04:30]} 28. Qf3 {[%emt 0:02:30]} Rf4 {[%emt 0:08:30]} 29. Qd3 {[%emt 0:00:30]} Nb4 {[%emt 0:11:30]} 30. Qd6 {[%emt 0:01:30]} Rf5 {[%emt 0:08:42]} 31. c3 {[%emt 0:02:30]} Na6 {[%emt 0:04:28]} 32. Bxa6 {[%emt 0:01:30]} Qxa6 {[%emt 0:00:14]} 33. Nc5 {[%emt 0:00:00]} Qb6 {[%emt 0:00:16]} 34. Ra6 {[%emt 0:00:00]} Rd8 {[%emt 0:02:24]} 35. Rxb6 {[%emt 0:07:30]} Rxd6 {[%emt 0:00:13]} 36. Nb7 {[%emt 0:00:30]} Rd2 {[%emt 0:00:32]} 37. Rb4 {[%emt 0:00:30]} Rfxf2 {[%emt 0:01:39]} 38. Nd6+ {[%emt 0:00:30]} Kc7 {[%emt 0:00:24]} 39. Nxf7 {[%emt 0:00:30]} Rxg2+ {[%emt 0:00:41]} 40. Kh1 {[%emt 0:00:30]} Rxh2+ {[%emt 0:00:30]} 41. Kg1 {[%emt 0:00:00]} Rdg2+ {[%emt 0:01:48]} 42. Kf1 {[%emt 0:00:00]} Nd5 {[%emt 0:00:17]} 43. Rc4 {[%emt 0:01:30]} Rg3 {[%emt 0:01:15]} 44. Rce4 {[%emt 0:00:30]} Nxc3 {[%emt 0:01:30]} 45. Rxe6 {[%emt 0:00:30]} Nd5 {[%emt 0:00:17]} 46. Ne5 {[%emt 0:02:30]} Ne3+ {[%emt 0:00:24]} 0-1

[Event "2nd Turkish League 2017"]
[Site "Konya"]
[Date "2017.07.21"]
[Round "7"]
[White "Rzayev, Bahruz"]
[Black "Oz, Ozan"]
[Result "1-0"]
[ECO "A33"]
[WhiteElo "2386"]
[BlackElo "1849"]
[Annotator "NA"]
[PlyCount "87"]
[EventType "team-tourn"]
[EventCountry "TUR"]
[SourceTitle "playchess.com"]
[Source "ChessBase"]
[SourceQuality "1"]
[TimeControl "5400+30"]

1. Nf3 {[%emt 0:00:30]} e6 {[%emt 0:01:00]} 2. g3 {[%emt 0:00:00]} c5 {[%emt 0:00:30]} 3. Bg2 {[%emt 0:00:00]} Nc6 {[%emt 0:00:30]} 4. O-O {[%emt 0:00:00]} Nf6 {[%emt 0:00:00]} 5. b3 {[%emt 0:01:00]} Be7 {[%emt 0:00:00]} 6. Bb2 $11 {[%emt 0:00:30]} O-O {[%emt 0:00:30]} 7. c4 {[%emt 0:00:30]} b6 {[%emt 0:03:30]} 8. d4 {[%emt 0:00:30]} cxd4 {[%emt 0:03:30]} 9. Nxd4 {[%emt 0:00:30]} Bb7 {[%emt 0:06:30]} 10. Nc3 {[%emt 0:02:30]} a6 {[%emt 0:00:30]} 11. Rc1 {[%emt 0:00:30]} Qc7 {[%emt 0:00:30]} 12. Nd5 {[%emt 0:01:30]} Qd8 {[%emt 0:12:30]} 13. Nxe7+ {[%emt 0:00:30]} Qxe7 {[%emt 0:00:00]} 14. Qd2 {[%emt 0:03:30]} Rfd8 {[%emt 0:05:00]} 15. Rfd1 {[%emt 0:05:30]} Rac8 {[%emt 0:17:30]} 16. Qe3 {[%emt 0:03:30]} Ng4 {[%emt 0:14:30]} 17. Nxc6 {[%emt 0:00:30]} Bxc6 {[%emt 0:02:30]} 18. Qxb6 {[%emt 0:00:00]} Bxg2 {[%emt 0:01:30]} 19. Kxg2 {[%emt 0:00:00]} Qg5 {[%emt 0:00:30]} 20. h3 {[%emt 0:01:30]} Nf6 {[%emt 0:02:30]} 21. Bxf6 {[%emt 0:05:30]} Qxf6 {[%emt 0:00:30]} 22. Rc2 {[%emt 0:00:00]} Rc6 {[%emt 0:02:30]} 23. Qb7 {[%emt 0:03:00]} Rcc8 {[%emt 0:05:56]} 24. Qxa6 {[%emt 0:01:30]} h5 {[%emt 0:00:43]} 25. Qd6 {[%emt 0:03:30]} h4 {[%emt 0:00:53]} 26. Qf4 {[%emt 0:00:30]} Qg6 {[%emt 0:00:30]} 27. Rcd2 {[%emt 0:00:30]} hxg3 {[%emt 0:00:00]} 28. fxg3 {[%emt 0:00:30]} d5 {[%emt 0:00:00]} 29. cxd5 {[%emt 0:00:00]} exd5 {[%emt 0:00:28]} 30. Rxd5 {[%emt 0:00:00]} Re8 {[%emt 0:00:30]} 31. R1d2 {[%emt 0:00:30]} Qc6 {[%emt 0:00:30]} 32. Qf3 {[%emt 0:00:00]} Qc1 {[%emt 0:00:30]} 33. Rd7 {[%emt 0:00:00]} Rf8 {[%emt 0:00:00]} 34. e4 {[%emt 0:00:30]} Qe1 {[%emt 0:01:00]} 35. Re2 {[%emt 0:00:30]} Qa1 {[%emt 0:00:00]} 36. Rf2 {[%emt 0:00:30]} Rc3 {[%emt 0:01:00]} 37. Rd1 {[%emt 0:00:00]} Rc1 {[%emt 0:00:30]} 38. Rxc1 {[%emt 0:00:00]} Qxc1 {[%emt 0:00:30]} 39. Qd3 {[%emt 0:00:30]} Rc8 {[%emt 0:00:30]} 40. Qd5 {[%emt 0:00:30]} Rc7 {[%emt 0:00:30]} 41. e5 {[%emt 0:00:00]} Kh7 {[%emt 0:00:00]} 42. e6 {[%emt 0:00:00]} f6 {[%emt 0:00:00]} 43. Qe4+ {[%emt 0:00:30]} g6 {[%emt 0:00:30]} 44. e7 {[%emt 0:00:00]} 1-0

[Event "2nd Turkish League 2017"]
[Site "Konya"]
[Date "2017.07.21"]
[Round "7"]
[White "Ozturk, Emir"]
[Black "Dogdu, Mehmet"]
[Result "1-0"]
[ECO "E46"]
[WhiteElo "2202"]
[BlackElo "1985"]
[Annotator "NA"]
[PlyCount "95"]
[EventType "team-tourn"]
[EventCountry "TUR"]
[SourceTitle "playchess.com"]
[Source "ChessBase"]
[SourceQuality "1"]
[TimeControl "5400+30"]

1. d4 {[%emt 0:00:30]} Nf6 {[%emt 0:01:00]} 2. c4 {[%emt 0:00:30]} e6 {[%emt 0:00:30]} 3. Nc3 {[%emt 0:00:30]} Bb4 {[%emt 0:00:00]} 4. e3 {[%emt 0:00:00]} O-O {[%emt 0:03:00]} 5. Nge2 {[%emt 0:00:00]} d5 {[%emt 0:02:30]} 6. a3 {[%emt 0:00:30]} Be7 {[%emt 0:01:30]} 7. cxd5 {[%emt 0:00:30]} Nxd5 {[%emt 0:01:30] LiveBook: 251 Games} 8. Bd2 {[%emt 0:04:30]} Nf6 {[%emt 0:08:30]} 9. g3 {[%emt 0:01:30]} Nc6 {[%emt 0:14:30]} 10. Bg2 {[%emt 0:03:30]} e5 {[%emt 0:00:30]} 11. d5 $11 {[%emt 0:05:30]} Na5 {[%emt 0:06:30]} 12. Qa4 {[%emt 0:06:30]} b6 {[%emt 0:01:30]} 13. O-O {[%emt 0:11:30]} Bd7 {[%emt 0:13:30]} 14. Qc2 {[%emt 0:01:30]} Nc4 {[%emt 0:02:30]} 15. Bc1 {[%emt 0:01:30]} Nd6 {[%emt 0:03:30]} 16. b3 {[%emt 0:03:30]} Rc8 {[%emt 0:02:30]} 17. Bb2 {[%emt 0:05:30]} c6 {[%emt 0:05:30]} 18. Qd2 {[%emt 0:01:30]} c5 {[%emt 0:01:30]} 19. e4 {[%emt 0:03:30]} Nb7 {[%emt 0:04:30]} 20. Nd1 {[%emt 0:06:30]} Bd6 {[%emt 0:00:30]} 21. Ne3 {[%emt 0:01:30]} Na5 {[%emt 0:04:30]} 22. Nc1 {[%emt 0:05:30]} Qc7 {[%emt 0:06:05]} 23. Bc3 {[%emt 0:00:30]} Ng4 {[%emt 0:03:56]} 24. Nd1 {[%emt 0:04:30]} f5 {[%emt 0:04:22]} 25. exf5 {[%emt 0:01:30]} Bxf5 {[%emt 0:00:56]} 26. h3 {[%emt 0:00:30]} Nh6 {[%emt 0:00:11]} 27. g4 {[%emt 0:01:30]} Bg6 {[%emt 0:00:17]} 28. Ne3 {[%emt 0:04:30]} Rf4 {[%emt 0:01:27]} 29. Bxa5 {[%emt 0:00:30]} bxa5 {[%emt 0:00:06]} 30. Ne2 {[%emt 0:00:00]} Rcf8 {[%emt 0:01:10]} 31. Nc4 {[%emt 0:02:00]} R4f7 {[%emt 0:02:04]} 32. Ng3 {[%emt 0:01:30]} Qe7 {[%emt 0:01:40]} 33. Rac1 {[%emt 0:02:30]} Rf4 {[%emt 0:01:19]} 34. Ne2 {[%emt 0:02:17]} Rxc4 {[%emt 0:01:47]} 35. Rxc4 {[%emt 0:00:42]} Nf7 {[%emt 0:01:17]} 36. Qe3 {[%emt 0:02:32]} Qh4 {[%emt 0:00:54]} 37. f4 {[%emt 0:00:39]} h6 {[%emt 0:00:46]} 38. f5 {[%emt 0:05:03]} Bh7 {[%emt 0:00:05]} 39. Nc3 {[%emt 0:00:35]} Be7 {[%emt 0:01:04]} 40. Qf2 {[%emt 0:01:44]} Qf6 {[%emt 0:00:16]} 41. Ne4 {[%emt 0:00:16]} Qb6 {[%emt 0:00:32]} 42. Qe3 {[%emt 0:01:00]} Nd6 {[%emt 0:00:49]} 43. Nxd6 {[%emt 0:00:30]} Qxd6 {[%emt 0:00:30]} 44. Re1 {[%emt 0:00:30]} Qb6 {[%emt 0:00:30]} 45. Qxe5 {[%emt 0:00:30]} Bd6 {[%emt 0:00:00]} 46. Qc3 {[%emt 0:01:27]} Kh8 {[%emt 0:00:22]} 47. Re6 {[%emt 0:00:54]} Bg8 {[%emt 0:00:15]} 48. Rxh6+ {[%emt 0:00:01]} 1-0

[Event "2nd Turkish League 2017"]
[Site "Konya"]
[Date "2017.07.21"]
[Round "7"]
[White "Yagiz, Yasin Emrah"]
[Black "Lomsadze, Davit"]
[Result "1-0"]
[ECO "E63"]
[WhiteElo "2172"]
[BlackElo "2335"]
[Annotator "NA"]
[PlyCount "95"]
[EventType "team-tourn"]
[EventCountry "TUR"]
[SourceTitle "playchess.com"]
[Source "ChessBase"]
[SourceQuality "1"]
[TimeControl "5400+30"]

1. Nf3 {[%emt 0:00:30]} Nf6 {[%emt 0:01:00]} 2. c4 {[%emt 0:00:30]} g6 {[%emt 0:00:00]} 3. g3 {[%emt 0:00:30]} Bg7 {[%emt 0:00:00]} 4. Bg2 {[%emt 0:00:30]} O-O {[%emt 0:00:30]} 5. O-O {[%emt 0:00:00]} d6 {[%emt 0:00:30]} 6. d4 {[%emt 0:00:00]} a6 {[%emt 0:00:00]} 7. Nc3 {[%emt 0:01:30]} Nc6 {[%emt 0:00:00]} 8. Re1 {[%emt 0:00:30]} Rb8 {[%emt 0:00:30]} 9. Rb1 {[%emt 0:00:30]} Bf5 {[%emt 0:01:30]} 10. e4 {[%emt 0:00:30] E63: King's Indian: Fianchetto: Panno Variation with 7...a6} Bg4 {[%emt 0:00:30]} 11. Be3 {[%emt 0:02:30]} Nd7 {[%emt 0:04:30]} (11... Qc8 12. Rc1 Re8 13. Qd3 Bxf3 14. Bxf3 Ng4 15. Bxg4 Qxg4 16. Kg2 Qd7 17. a3 e6 {½-½ (25) Erdos,V (2614)-Iljiushenok,I (2489) Minsk 2017}) 12. h3 {[%emt 0:03:30]} Bxf3 $1 {[%emt 0:01:30]} 13. Bxf3 {[%emt 0:00:30]} e5 {[%emt 0:00:30]} 14. dxe5 {[%emt 0:05:30]} dxe5 {[%emt 0:01:30]} 15. b4 {[%emt 0:06:30]} Nd4 {[%emt 0:02:30]} 16. c5 $146 {[%emt 0:01:30]} ({Predecessor:} 16. Bg2 Nb6 17. Bf1 Qf6 18. Bxd4 exd4 {1-0 (28) Janjos,S (2154)-Rasic,G (2214) Serbia 2011}) 16... a5 {[%emt 0:03:30]} 17. a3 {[%emt 0:04:30]} c6 {[%emt 0:00:30]} 18. Bg2 {[%emt 0:01:30]} axb4 {[%emt 0:00:30]} 19. axb4 {[%emt 0:00:30]} Qe7 {[%emt 0:00:30]} 20. Ne2 $11 {[%emt 0:04:30]} Nb5 {[%emt 0:03:30]} 21. Ra1 {[%emt 0:03:30]} Rfd8 {[%emt 0:00:30]} 22. Qc1 {[%emt 0:01:30]} Nf8 {[%emt 0:01:30]} 23. Bg5 {[%emt 0:03:30]} Bf6 {[%emt 0:01:30]} 24. Be3 {[%emt 0:03:30]} Ne6 {[%emt 0:05:30]} 25. h4 {[%emt 0:02:30]} Ned4 {[%emt 0:09:30]} 26. Qc4 {[%emt 0:08:30]} Rd7 {[%emt 0:09:30]} 27. Nxd4 {[%emt 0:03:30]} Nxd4 {[%emt 0:00:30]} 28. Ra2 {[%emt 0:07:30]} Bg7 {[%emt 0:08:30]} 29. Rea1 {[%emt 0:02:30]} Qf8 {[%emt 0:00:30]} 30. Bh3 {[%emt 0:04:30]} Rdd8 {[%emt 0:00:30]} 31. Kg2 {[%emt 0:03:30]} h6 {[%emt 0:02:30]} 32. Rf1 {[%emt 0:05:30]} b5 {[%emt 0:38:01]} 33. Qc3 {[%emt 0:02:37]} f5 {[%emt 0:00:38]} 34. Bxd4 {[%emt 0:01:47]} Rxd4 {[%emt 0:01:30]} 35. Qb3+ {[%emt 0:01:35]} Rc4 {[%emt 0:01:13]} 36. exf5 {[%emt 0:02:06]} gxf5 {[%emt 0:00:04]} 37. Rd1 {[%emt 0:00:18]} Kh8 {[%emt 0:01:03]} 38. Rd7 {[%emt 0:00:22]} Rd8 {[%emt 0:00:44]} 39. Bxf5 {[%emt 0:01:14]} e4 {[%emt 0:00:21]} 40. Qd1 {[%emt 0:03:50]} Rxd7 {[%emt 0:01:16]} 41. Qxd7 {[%emt 0:00:02]} Rxb4 {[%emt 0:00:41]} 42. Qe6 {[%emt 0:00:31]} Ra4 {[%emt 0:00:54]} 43. Rd2 {[%emt 0:04:25]} e3 {[%emt 0:00:46]} 44. fxe3 {[%emt 0:00:42]} Qf6 {[%emt 0:00:34]} 45. Qc8+ {[%emt 0:03:03]} Bf8 {[%emt 0:00:06]} 46. Rf2 {[%emt 0:01:20]} Qe7 {[%emt 0:00:01]} 47. Bc2 {[%emt 0:00:20]} Kg7 {[%emt 0:01:03]} 48. Qf5 {[%emt 0:00:04]} 1-0

[Event "2nd Turkish League 2017"]
[Site "Konya"]
[Date "2017.07.21"]
[Round "7"]
[White "Kerem, Halil Ozgun"]
[Black "Bicer, Atakan Mert"]
[Result "1-0"]
[ECO "A07"]
[WhiteElo "2074"]
[BlackElo "1863"]
[Annotator "NA"]
[PlyCount "89"]
[EventType "team-tourn"]
[EventCountry "TUR"]
[SourceTitle "playchess.com"]
[Source "ChessBase"]
[SourceQuality "1"]
[TimeControl "5400+30"]

1. Nf3 {[%emt 0:00:30]} d5 {[%emt 0:03:00]} 2. g3 {[%emt 0:00:30]} Bf5 {[%emt 0:00:00]} 3. c4 {[%emt 0:03:30]} dxc4 {[%emt 0:05:00]} 4. Na3 {[%emt 0:00:30]} c6 {[%emt 0:24:30]} 5. Nxc4 {[%emt 0:00:30]} e6 {[%emt 0:00:30]} 6. Bg2 {[%emt 0:00:30]} Nd7 {[%emt 0:01:30]} 7. O-O {[%emt 0:01:30]} Ngf6 {[%emt 0:00:30]} 8. d3 {[%emt 0:03:30]} Be7 {[%emt 0:07:30]} 9. b4 {[%emt 0:05:30]} O-O {[%emt 0:12:30]} 10. a3 {[%emt 0:00:00]} Nb6 {[%emt 0:20:55]} 11. Na5 {[%emt 0:00:00]} Rb8 {[%emt 0:00:11]} 12. Bb2 {[%emt 0:02:30]} Ne8 {[%emt 0:14:50]} 13. Qb3 {[%emt 0:21:30]} Nc7 {[%emt 0:01:17]} 14. Nd4 {[%emt 0:03:30]} Bf6 {[%emt 0:01:55]} 15. Nxf5 {[%emt 0:03:30]} exf5 {[%emt 0:00:20]} 16. Bxf6 {[%emt 0:02:30]} Qxf6 {[%emt 0:00:10]} 17. e3 {[%emt 0:00:30]} Rfd8 {[%emt 0:01:07]} 18. d4 {[%emt 0:00:30]} g5 {[%emt 0:00:30]} 19. Qd3 {[%emt 0:02:30]} f4 {[%emt 0:01:42]} 20. Qe4 {[%emt 0:00:30]} Ncd5 {[%emt 0:00:57]} 21. Qf3 {[%emt 0:00:30]} Qh6 {[%emt 0:01:18]} 22. e4 {[%emt 0:00:30]} Nf6 {[%emt 0:00:30]} 23. Rad1 {[%emt 0:00:00]} Re8 {[%emt 0:00:21]} 24. Rfe1 {[%emt 0:00:00]} fxg3 {[%emt 0:00:37]} 25. hxg3 {[%emt 0:00:30]} Qg6 {[%emt 0:00:15]} 26. Nb3 {[%emt 0:00:30]} h5 {[%emt 0:00:36]} 27. Nc5 {[%emt 0:00:30]} h4 {[%emt 0:00:49]} 28. g4 {[%emt 0:00:30]} Kg7 {[%emt 0:00:28]} 29. Qf5 {[%emt 0:01:30]} Qxf5 {[%emt 0:01:02]} 30. gxf5 {[%emt 0:00:30]} g4 {[%emt 0:00:00]} 31. e5 {[%emt 0:00:30]} Ng8 {[%emt 0:00:25]} 32. b5 {[%emt 0:02:30]} Nd5 {[%emt 0:00:36]} 33. a4 {[%emt 0:01:30]} Rec8 {[%emt 0:00:34]} 34. Nxb7 {[%emt 0:00:30]} Nc3 {[%emt 0:00:40]} 35. bxc6 {[%emt 0:00:30]} Nxd1 {[%emt 0:00:09]} 36. f6+ {[%emt 0:00:30]} Kg6 {[%emt 0:00:48]} 37. Rxd1 {[%emt 0:00:00]} Kg5 {[%emt 0:00:39]} 38. d5 {[%emt 0:00:00]} Kf4 {[%emt 0:00:25]} 39. d6 {[%emt 0:00:30]} h3 {[%emt 0:00:20]} 40. Bh1 {[%emt 0:00:30]} Kxe5 {[%emt 0:00:00]} 41. d7 {[%emt 0:00:30]} Rc7 {[%emt 0:00:00]} 42. Re1+ {[%emt 0:01:30]} Kf4 {[%emt 0:01:40]} 43. Re8 {[%emt 0:00:30]} Rbxb7 {[%emt 0:00:33]} 44. cxb7 {[%emt 0:00:00]} Nxf6 {[%emt 0:00:06]} 45. b8=Q {[%emt 0:00:00]} 1-0

[Event "2nd Turkish League 2017"]
[Site "Konya"]
[Date "2017.07.21"]
[Round "7"]
[White "Bayrak, Asli"]
[Black "Abdulla, Khayala"]
[Result "0-1"]
[ECO "C48"]
[WhiteElo "2056"]
[BlackElo "2262"]
[Annotator "NA"]
[PlyCount "96"]
[EventType "team-tourn"]
[EventCountry "TUR"]
[SourceTitle "playchess.com"]
[Source "ChessBase"]
[SourceQuality "1"]
[TimeControl "5400+30"]

1. e4 {[%emt 0:00:30]} Nf6 {[%emt 0:01:00]} 2. Nc3 {[%emt 0:04:30]} e5 {[%emt 0:00:30]} 3. Nf3 {[%emt 0:01:30]} Nc6 {[%emt 0:01:30]} 4. Bb5 {[%emt 0:04:30]} Bc5 {[%emt 0:02:30]} 5. O-O {[%emt 0:09:30]} d6 {[%emt 0:01:30] LiveBook: 46 Games} 6. d4 {[%emt 0:02:30]} exd4 {[%emt 0:00:30]} 7. Nxd4 {[%emt 0:01:30]} Bd7 {[%emt 0:00:30]} 8. Nb3 {[%emt 0:06:30]} Bb6 {[%emt 0:03:30]} 9. Na4 {[%emt 0:10:30]} O-O $11 {[%emt 0:02:30]} 10. Nxb6 {[%emt 0:00:30]} axb6 {[%emt 0:00:00]} 11. f3 {[%emt 0:04:30]} h6 {[%emt 0:04:00]} 12. Bxc6 {[%emt 0:10:30]} bxc6 {[%emt 0:01:30]} 13. Be3 {[%emt 0:01:30]} Re8 {[%emt 0:04:30]} 14. Qd2 {[%emt 0:01:30]} d5 {[%emt 0:07:30]} 15. Bd4 {[%emt 0:01:30]} Nh7 {[%emt 0:03:30]} 16. exd5 {[%emt 0:12:30]} cxd5 {[%emt 0:03:30]} 17. Bc3 {[%emt 0:00:30]} Bb5 {[%emt 0:01:30]} 18. Rfd1 {[%emt 0:03:30]} Bc4 {[%emt 0:03:30]} 19. Nc1 {[%emt 0:03:34]} c6 {[%emt 0:07:30]} 20. b3 {[%emt 0:00:38]} Ba6 {[%emt 0:00:30]} 21. Qd4 {[%emt 0:01:39]} f6 {[%emt 0:04:30]} 22. a4 {[%emt 0:03:28]} Bb7 {[%emt 0:09:30]} 23. b4 {[%emt 0:01:15]} Ng5 {[%emt 0:06:30]} 24. Qf2 {[%emt 0:00:55]} Ba6 {[%emt 0:08:30]} 25. Bd4 {[%emt 0:01:15]} Rb8 {[%emt 0:00:00]} 26. a5 {[%emt 0:03:31]} bxa5 {[%emt 0:00:00]} 27. Rxa5 {[%emt 0:00:06]} Bc4 {[%emt 0:01:30]} 28. c3 {[%emt 0:00:29]} Qd7 {[%emt 0:03:23]} 29. Ra7 {[%emt 0:05:59]} Qf5 {[%emt 0:00:27]} 30. h4 {[%emt 0:00:09]} Nf7 {[%emt 0:02:42]} 31. Be3 {[%emt 0:02:12]} Qe5 {[%emt 0:01:41]} 32. Bd4 {[%emt 0:00:17]} Qf4 {[%emt 0:02:43]} 33. Re1 {[%emt 0:01:30]} Nd6 {[%emt 0:03:52]} 34. Be3 {[%emt 0:00:17]} Qe5 {[%emt 0:02:36]} 35. Bd2 {[%emt 0:00:32]} Qh5 {[%emt 0:00:44]} 36. Bf4 {[%emt 0:00:14]} Rxe1+ {[%emt 0:01:59]} 37. Qxe1 {[%emt 0:00:05]} Re8 {[%emt 0:00:11]} 38. Qf2 {[%emt 0:02:02]} Nb5 {[%emt 0:00:37]} 39. Rb7 {[%emt 0:00:30]} Qg6 {[%emt 0:00:30]} 40. Bd2 {[%emt 0:00:26]} Kh8 {[%emt 0:02:53]} 41. h5 {[%emt 0:00:26]} Qxh5 {[%emt 0:01:08]} 42. Qg3 {[%emt 0:00:13]} Rg8 {[%emt 0:00:07]} 43. Re7 {[%emt 0:00:32]} Kh7 {[%emt 0:00:49]} 44. Qf4 {[%emt 0:01:01]} Qg5 {[%emt 0:02:00]} 45. Qxg5 {[%emt 0:00:58]} hxg5 {[%emt 0:00:30]} 46. Kf2 {[%emt 0:00:30]} Ra8 {[%emt 0:00:30]} 47. Re6 {[%emt 0:00:30]} Ra6 {[%emt 0:00:30]} 48. Ke3 {[%emt 0:00:30]} d4+ {[%emt 0:00:00]} 0-1